bitfinex-derivatives/quotes_BTCF0:USTF0_20250814
["timestamp","ask_amount","ask_price","bid_price","bid_amount"]
[1755160395015,0.001,122050.0,122040.0,1.07754256]
[1755160399011,0.10718726,122060.0,122050.0,0.11401]
[1755160399220,0.6369567,122070.0,122060.0,0.220443]
[1755160399517,0.6369567,122070.0,122060.0,0.71535356]
[1755160399518,0.65740287,122070.0,122060.0,0.71535356]
[1755160399919,0.65740287,122070.0,122060.0,0.23862459]
[1755160400421,0.72236918,122070.0,122060.0,0.23862459]
[1755160401222,0.75218498,122070.0,122060.0,0.23862459]
[1755160401610,0.67030828,122070.0,122060.0,0.23862459]
[1755160401814,0.67230828,122070.0,122060.0,0.23862459]
[1755160402215,0.67030828,122070.0,122060.0,0.23862459]
[1755160402419,0.75318458,122070.0,122060.0,0.23862459]
[1755160402720,0.75318458,122070.0,122060.0,0.71535356]
[1755160403919,0.75318458,122070.0,122060.0,0.23862459]
[1755160405518,0.55289828,122070.0,122060.0,0.71379356]
[1755160405724,0.66677828,122070.0,122060.0,0.71379356]
[1755160407928,0.59824828,122070.0,122060.0,0.71379356]
[1755160408225,0.63027828,122070.0,122060.0,0.71379356]
[1755160408426,0.66677828,122070.0,122060.0,0.71379356]
[1755160408727,0.30597828,122070.0,122060.0,0.71379356]
[1755160409322,0.28553211,122070.0,122060.0,0.71379356]
[1755160410826,0.28553211,122070.0,122060.0,1.07459356]
[1755160414028,0.36740851,122070.0,122060.0,0.19093459]
[1755160414424,0.72820851,122070.0,122060.0,0.19093459]
[1755160415231,0.72820851,122070.0,122060.0,0.19193459]
[1755160415423,0.64533211,122070.0,122060.0,0.19193459]
[1755160415622,0.64533211,122070.0,122060.0,0.19293459]
[1755160415823,0.28453211,122070.0,122060.0,0.19293459]
[1755160417826,0.28453211,122070.0,122060.0,0.66966356]
[1755160418529,0.28453211,122070.0,122060.0,0.71579356]
[1755160419729,0.09478211,122070.0,122060.0,0.71579356]
[1755160420025,0.41537,122080.0,122070.0,0.2182066]
[1755160420231,0.57091157,122080.0,122070.0,0.69493557]
[1755160421128,0.21011157,122080.0,122070.0,0.69493557]
[1755160421722,0.23886688,122080.0,122070.0,0.69493557]
[1755160422131,0.23886688,122080.0,122070.0,0.69593557]
[1755160422634,0.23886688,122080.0,122070.0,0.1730766]
[1755160422933,0.68153678,122080.0,122070.0,0.0828766]
[1755160423326,0.74738846,122080.0,122070.0,0.0828766]
[1755160424129,0.66551856,122080.0,122070.0,0.10147245]
[1755160424327,0.66551856,122080.0,122070.0,0.16635245]
[1755160424529,0.66551856,122080.0,122070.0,0.19167245]
[1755160424927,0.66551856,122080.0,122070.0,0.66840142]
[1755160424928,0.30471856,122080.0,122070.0,0.66840142]
[1755160425133,0.30471856,122080.0,122070.0,0.71453142]
[1755160425630,0.11496856,122080.0,122070.0,0.71453142]
[1755160425831,0.30471856,122080.0,122070.0,0.71453142]
[1755160427535,0.30471856,122080.0,122070.0,0.71406485]
[1755160431246,0.30471856,122080.0,122070.0,0.23733588]
[1755160431445,0.28435699,122080.0,122070.0,0.23733588]
[1755160432649,0.28435699,122080.0,122070.0,0.71406485]
[1755160434249,0.20800699,122080.0,122070.0,0.63713485]
[1755160434942,0.20800699,122080.0,122070.0,0.16040588]
[1755160435144,0.1904102,122080.0,122070.0,0.63581485]
[1755160435450,0.2258902,122080.0,122070.0,0.63581485]
[1755160439752,0.2258902,122080.0,122070.0,0.15908588]
[1755160440051,0.2258902,122080.0,122070.0,0.63581485]
[1755160441055,0.20551699,122080.0,122070.0,0.63581485]
[1755160441850,0.20551699,122080.0,122070.0,0.15908588]
[1755160442051,0.20551699,122080.0,122070.0,0.15899588]
[1755160442246,0.24262681,122080.0,122070.0,0.10100588]
[1755160442453,0.68529681,122080.0,122070.0,0.10100588]
[1755160442652,0.68529681,122080.0,122070.0,0.13367588]
[1755160443656,0.60342681,122080.0,122070.0,0.13367588]
[1755160443954,0.68529681,122080.0,122070.0,0.13367588]
[1755160444854,0.68529681,122080.0,122070.0,0.10100588]
[1755160445250,0.68529681,122080.0,122070.0,0.13367588]
[1755160449955,0.68529681,122080.0,122070.0,0.10100588]
[1755160451155,0.68529681,122080.0,122070.0,0.13367588]
[1755160451558,0.60342681,122080.0,122070.0,0.13367588]
[1755160451857,0.68529681,122080.0,122070.0,0.13367588]
[1755160457463,0.68529681,122080.0,122070.0,0.10100588]
[1755160465972,0.68529681,122080.0,122070.0,0.15734588]
[1755160466671,0.68529681,122080.0,122070.0,0.10100588]
[1755160467270,0.0818877,122060.0,122050.0,0.1637876]
[1755160467468,1.06657615,122060.0,122050.0,0.2456814]
[1755160468376,1.06657615,122060.0,122050.0,0.2476814]
[1755160468575,1.06657615,122060.0,122050.0,0.2486814]
[1755160469170,1.06757615,122060.0,122050.0,0.0828938]
[1755160470272,1.06757615,122060.0,122050.0,0.0818938]
[1755160470776,1.06657615,122060.0,122050.0,0.0818938]
[1755160471076,0.59084718,122060.0,122050.0,0.0818938]
[1755160471578,0.59184718,122060.0,122050.0,0.0818938]
[1755160472680,1.06857615,122060.0,122050.0,0.0818938]
[1755160473371,1.42937615,122060.0,122050.0,0.0818938]
[1755160475575,0.0818956,122050.0,122040.0,0.2456969]
[1755160475877,0.57356494,122050.0,122040.0,0.2456969]
[1755160477475,0.0819027,122040.0,122030.0,0.26480667]
[1755160477676,0.1275461,122020.0,122010.0,0.2467637]
[1755160477881,0.5531961,122020.0,122010.0,0.3228472]
[1755160478680,0.56975587,122020.0,122010.0,0.1014563]
[1755160478980,0.56975587,122020.0,122010.0,0.1044563]
[1755160479879,0.56975587,122020.0,122010.0,0.2064663]
[1755160480076,0.48783977,122020.0,122010.0,0.68319527]
[1755160480278,0.48783977,122020.0,122010.0,0.68619527]
[1755160480974,0.3608,122020.0,122010.0,0.68619527]
[1755160481175,0.47128,122020.0,122010.0,0.68619527]
[1755160485881,0.3608,122020.0,122010.0,0.68619527]
[1755160486681,0.40643,122020.0,122010.0,0.68619527]
[1755160486881,0.47128,122020.0,122010.0,0.68619527]
[1755160487386,0.47128,122020.0,122010.0,0.2094663]
[1755160492391,0.47128,122020.0,122010.0,0.1074563]
[1755160492993,0.47128,122020.0,122010.0,0.1399163]
[1755160494295,0.5473,122020.0,122010.0,0.1399163]
[1755160494490,0.5473,122020.0,122010.0,0.1698463]
[1755160494797,0.55011,122020.0,122010.0,0.76398527]
[1755160495594,0.40735,122020.0,122010.0,0.76398527]
[1755160495995,0.44344,122020.0,122010.0,0.76398527]
[1755160496194,0.55228,122020.0,122010.0,0.76398527]
[1755160496384,0.3608,122020.0,122010.0,0.76398527]
[1755160496583,0.02038353,122020.0,122010.0,0.76398527]
[1755160496789,0.02038353,122020.0,122010.0,1.12478527]
[1755160496989,0.19148,122030.0,122020.0,0.2601867]
[1755160497189,0.21186233,122030.0,122020.0,0.73691567]
[1755160497498,0.57266233,122030.0,122020.0,0.0819167]
[1755160497788,1.1313013,122030.0,122020.0,0.0819167]
[1755160498291,0.2733967,122020.0,122010.0,0.3522208]
[1755160498497,0.65457903,122020.0,122010.0,0.3522208]
[1755160498696,0.57266233,122020.0,122010.0,0.3522208]
[1755160498896,0.57266233,122020.0,122010.0,0.3822008]
[1755160499196,0.65457903,122020.0,122010.0,0.3502208]
[1755160499385,0.65457903,122020.0,122010.0,0.3482208]
[1755160499585,0.65457903,122020.0,122010.0,0.3502208]
[1755160500195,0.65457903,122020.0,122010.0,0.3482208]
[1755160500494,0.65457903,122020.0,122010.0,0.3492208]
[1755160500888,0.65457903,122020.0,122010.0,0.267298]
[1755160502601,0.65457903,122020.0,122010.0,0.26531925]
[1755160503102,1.131308,122020.0,122010.0,0.26531925]
[1755160503299,0.65457903,122020.0,122010.0,0.26531925]
[1755160504191,1.131308,122020.0,122010.0,0.26531925]
[1755160504896,1.131308,122020.0,122010.0,0.10147365]
[1755160505102,1.131308,122020.0,122010.0,0.10147825]
[1755160506196,1.14921303,122020.0,122010.0,0.003]
[1755160506403,0.2734035,122010.0,122000.0,1.3287145]
[1755160506597,1.1313148,122010.0,122000.0,1.3287145]
[1755160506897,1.1313148,122010.0,122000.0,1.2467851]
[1755160507097,1.1313148,122010.0,122000.0,1.001]
[1755160507397,1.29524281,122010.0,122000.0,0.88374]
[1755160507598,1.49524281,122010.0,122000.0,0.44299422]
[1755160507799,0.1000002,122000.0,121990.0,0.001]
[1755160507999,1.45319028,122000.0,121990.0,0.001]
[1755160508201,1.61713428,122000.0,121990.0,0.001]
[1755160508797,0.0974136,121980.0,121970.0,0.14655773]
[1755160509001,1.31406988,121980.0,121970.0,0.01635143]
[1755160509204,2.81406988,121980.0,121970.0,0.14656173]
[1755160510512,2.81406988,121980.0,121970.0,0.14756173]
[1755160511502,2.83445483,121980.0,121970.0,0.14756173]
[1755160512008,2.83445483,121980.0,121970.0,0.14856173]
[1755160512415,2.83445483,121980.0,121970.0,0.28896173]
[1755160512812,2.35177586,121980.0,121970.0,0.28896173]
[1755160513109,2.3798401,121980.0,121970.0,0.28896173]
[1755160513602,2.44502473,121980.0,121970.0,0.28896173]
[1755160519311,2.44502473,121980.0,121970.0,0.22190173]
[1755160519611,2.44502473,121980.0,121970.0,0.28896173]
[1755160521012,2.9217537,121980.0,121970.0,0.22190173]
[1755160522517,2.9217537,121980.0,121970.0,0.10030173]
[1755160522813,2.9217537,121980.0,121970.0,0.14856173]
[1755160523218,2.9217537,121980.0,121970.0,0.28896173]
[1755160523219,2.44502473,121980.0,121970.0,0.28896173]
[1755160523418,2.9217537,121980.0,121970.0,0.28896173]
[1755160523614,2.92170787,121980.0,121970.0,0.25739173]
[1755160523819,2.92910787,121980.0,121970.0,0.11739143]
[1755160524125,2.92910787,121980.0,121970.0,0.17848683]
[1755160524722,2.92910787,121980.0,121970.0,0.09654143]
[1755160524914,2.92910787,121980.0,121970.0,0.01835143]
[1755160525921,2.92910787,121980.0,121970.0,0.06438143]
[1755160526121,2.92910787,121980.0,121970.0,0.14632693]
[1755160526719,2.4523789,121980.0,121970.0,0.23670693]
[1755160526914,2.4497589,121980.0,121970.0,0.29377693]
[1755160527918,2.4497589,121980.0,121970.0,0.21183143]
[1755160528223,2.92910787,121980.0,121970.0,0.14632693]
[1755160529920,2.92910787,121980.0,121970.0,0.18213693]
[1755160530122,2.92910787,121980.0,121970.0,0.14632693]
[1755160530823,2.92910787,121980.0,121970.0,0.06438143]
[1755160531025,2.92910787,121980.0,121970.0,0.14632673]
[1755160531721,2.92910787,121980.0,121970.0,0.06438143]
[1755160532126,2.92910787,121980.0,121970.0,0.14632673]
[1755160532319,2.92910787,121980.0,121970.0,0.06438143]
[1755160532617,2.92910787,121980.0,121970.0,0.01835143]
[1755160534827,2.4523789,121980.0,121970.0,0.01835143]
[1755160535032,2.92910787,121980.0,121970.0,0.01835143]
[1755160537126,2.92910787,121980.0,121970.0,0.002]
[1755160537326,0.1085368,121960.0,121950.0,0.2939052]
[1755160537533,0.98301489,121960.0,121950.0,0.2939052]
[1755160537929,2.84119489,121960.0,121950.0,0.04803]
[1755160538133,2.84381489,121960.0,121950.0,0.06084884]
[1755160538330,2.86242961,121960.0,121950.0,0.01481884]
[1755160538536,0.1962802,121940.0,121930.0,0.3718762]
[1755160538732,1.41494829,121940.0,121930.0,0.3718762]
[1755160538933,1.43356441,121940.0,121930.0,0.1639505]
[1755160539231,0.0819769,121930.0,121920.0,0.2129714]
[1755160539440,0.57742602,121930.0,121920.0,0.409725]
[1755160540440,0.57742602,121930.0,121920.0,0.455755]
[1755160540733,0.57742602,121930.0,121920.0,0.458755]
[1755160541933,0.57742602,121930.0,121920.0,0.266275]
[1755160542142,1.05415499,121930.0,121920.0,0.0859836]
[1755160542340,1.05415499,121930.0,121920.0,0.1320136]
[1755160542539,1.05415499,121930.0,121920.0,0.1290136]
[1755160542841,0.57742602,121930.0,121920.0,0.1310136]
[1755160543043,0.57742602,121930.0,121920.0,0.04903]
[1755160543242,0.57742602,121930.0,121920.0,0.1310137]
[1755160544335,0.57742602,121930.0,121920.0,0.1668237]
[1755160544746,0.57742602,121930.0,121920.0,0.003]
[1755160544944,0.57742602,121930.0,121920.0,0.0849837]
[1755160545342,0.57742602,121930.0,121920.0,0.1310137]
[1755160547545,0.57742602,121930.0,121920.0,0.2457837]
[1755160547747,0.57742602,121930.0,121920.0,0.2784637]
[1755160548644,0.57742602,121930.0,121920.0,0.2774637]
[1755160549150,0.57742602,121930.0,121920.0,0.2754637]
[1755160550544,0.57742602,121930.0,121920.0,0.28828539]
[1755160552255,0.53177602,121930.0,121920.0,0.28828539]
[1755160552954,2.07742602,121930.0,121920.0,0.28828539]
[1755160554659,2.03177602,121930.0,121920.0,0.28828539]
[1755160554958,2.02159602,121930.0,121920.0,0.28828539]
[1755160555147,2.03081602,121930.0,121920.0,0.28828539]
[1755160556560,0.46311612,121930.0,121920.0,0.76501436]
[1755160556855,0.38113912,121930.0,121920.0,0.75219267]
[1755160557049,0.38113912,121930.0,121920.0,0.76501385]
[1755160558657,0.38494912,121930.0,121920.0,0.76501385]
[1755160559161,0.52036612,121930.0,121920.0,0.76501385]
[1755160559362,0.52958612,121930.0,121920.0,0.28828488]
[1755160559751,0.509247,121930.0,121920.0,0.28828488]
[1755160560061,0.554897,121930.0,121920.0,0.28828488]
[1755160560661,0.57528111,121930.0,121920.0,0.28828488]
[1755160560853,1.05201008,121930.0,121920.0,0.06254118]
[1755160561556,0.57528111,121930.0,121920.0,0.14452488]
[1755160561756,0.57528111,121930.0,121920.0,0.29102488]
[1755160562054,0.57528111,121930.0,121920.0,0.20904118]
[1755160562259,0.52964261,121930.0,121920.0,0.29102488]
[1755160562562,0.57529261,121930.0,121920.0,0.29102488]
[1755160565056,0.57529261,121930.0,121920.0,0.09480488]
[1755160565258,0.57529261,121930.0,121920.0,0.14452488]
[1755160565562,0.57529261,121930.0,121920.0,0.29102488]
[1755160568769,1.05202158,121930.0,121920.0,0.01282118]
[1755160570366,0.0819837,121920.0,121910.0,0.2966909]
[1755160570566,1.05202828,121920.0,121910.0,0.30951353]
[1755160570864,2.55202828,121920.0,121910.0,0.30951353]
[1755160571167,2.55202828,121920.0,121910.0,0.45601353]
[1755160571673,2.55202828,121920.0,121910.0,0.37502323]
[1755160571966,2.57022076,121920.0,121910.0,0.09681293]
[1755160572168,2.57022076,121920.0,121910.0,0.14653293]
[1755160572764,2.57022076,121920.0,121910.0,0.18386293]
[1755160573172,2.57022076,121920.0,121910.0,0.18486293]
[1755160573569,2.57022076,121920.0,121910.0,0.26291293]
[1755160573771,2.57022076,121920.0,121910.0,0.29403293]
[1755160574977,2.57022076,121920.0,121910.0,0.21204263]
[1755160577173,2.57022076,121920.0,121910.0,0.29403293]
[1755160577462,2.57022076,121920.0,121910.0,0.21204263]
[1755160577670,2.57022076,121920.0,121910.0,0.29403293]
[1755160578274,2.57022076,121920.0,121910.0,0.01582263]
[1755160578476,2.57022076,121920.0,121910.0,0.01582271]
[1755160578877,2.57022076,121920.0,121910.0,0.06554271]
[1755160579380,2.57022076,121920.0,121910.0,0.14753301]
[1755160579781,2.57022076,121920.0,121910.0,0.20553301]
[1755160580169,2.57022076,121920.0,121910.0,0.10772]
[1755160580376,0.2735903,121910.0,121900.0,0.2731628]
[1755160580575,1.13151488,121910.0,121900.0,0.2731628]
[1755160581368,0.6343903,121910.0,121900.0,0.2731628]
[1755160581574,0.70087158,121910.0,121900.0,0.2731628]
[1755160581774,0.70187158,121910.0,121900.0,0.2731628]
[1755160582270,0.70187158,121910.0,121900.0,0.3602128]
[1755160583581,0.70287158,121910.0,121900.0,0.3602128]
[1755160586181,0.70287158,121910.0,121900.0,0.3569428]
[1755160586677,0.72164759,121910.0,121900.0,0.3569428]
[1755160586882,0.71218267,121910.0,121900.0,0.3569428]
[1755160587278,0.74199267,121910.0,121900.0,0.3569428]
[1755160588785,0.72156759,121910.0,121900.0,0.3569428]
[1755160588985,0.36076759,121910.0,121900.0,0.2749464]
[1755160589185,0.72156759,121910.0,121900.0,0.2749464]
[1755160590386,0.72156759,121910.0,121900.0,0.0819964]
[1755160590586,0.72156759,121910.0,121900.0,0.2768764]
[1755160592285,0.72156759,121910.0,121900.0,0.28969937]
[1755160593084,1.19829656,121910.0,121900.0,0.17479937]
[1755160593283,0.72156759,121910.0,121900.0,0.17479937]
[1755160593586,1.19829656,121910.0,121900.0,0.17479937]
[1755160593790,1.19829656,121910.0,121900.0,0.21308937]
[1755160593986,0.72156759,121910.0,121900.0,0.28969937]
[1755160597391,0.74201682,121910.0,121900.0,0.09481937]
[1755160597587,0.74201682,121910.0,121900.0,0.28969937]
[1755160602484,1.21874579,121910.0,121900.0,0.17479937]
[1755160602891,0.74201682,121910.0,121900.0,0.14261937]
[1755160603192,1.21874579,121910.0,121900.0,0.14261937]
[1755160603394,1.21874579,121910.0,121900.0,0.09481937]
[1755160607097,0.74201682,121910.0,121900.0,0.09481937]
[1755160607297,1.21874579,121910.0,121900.0,0.09481937]
[1755160608395,1.21874579,121910.0,121900.0,0.01282297]
[1755160611697,0.2764965,121900.0,121890.0,0.01675697]
[1755160611892,1.1344747,121900.0,121890.0,0.01675697]
[1755160612595,0.65774573,121900.0,121890.0,0.09876017]
[1755160612798,1.1344747,121900.0,121890.0,0.09876017]
[1755160613102,1.1344747,121900.0,121890.0,0.01675697]
[1755160613503,0.65774573,121900.0,121890.0,0.01675697]
[1755160613701,1.1344747,121900.0,121890.0,0.01675697]
[1755160614700,1.1344747,121900.0,121870.0,0.1169]
[1755160614901,0.2744967,121870.0,121860.0,0.002]
[1755160615103,0.2745034,121860.0,121850.0,0.12193]
[1755160615309,0.2745102,121850.0,121840.0,0.25956596]
[1755160615510,0.6353102,121850.0,121840.0,0.25956596]
[1755160615703,1.11203917,121850.0,121840.0,0.25956596]
[1755160616011,0.6353102,121850.0,121840.0,0.2428469]
[1755160616813,0.6353102,121850.0,121840.0,0.2746369]
[1755160617010,0.6353102,121850.0,121840.0,0.2776369]
[1755160617211,0.4953202,121850.0,121840.0,0.2776369]
[1755160617412,0.6353102,121850.0,121840.0,0.2776369]
[1755160617610,0.6353102,121850.0,121840.0,0.2796369]
[1755160618012,0.6353102,121850.0,121840.0,0.27976496]
[1755160618608,0.6523387,121850.0,121840.0,0.27976496]
[1755160620518,0.5365986,121850.0,121840.0,0.27976496]
[1755160620720,0.6523386,121850.0,121840.0,0.27976496]
[1755160626127,0.6523386,121850.0,121840.0,0.19772806]
[1755160626625,0.6523386,121850.0,121840.0,0.27976496]
[1755160627526,0.6523386,121850.0,121840.0,0.19772806]
[1755160630930,0.6523386,121850.0,121840.0,0.27976496]
[1755160631127,1.12906757,121850.0,121840.0,0.27976496]
[1755160631430,1.12906757,121850.0,121840.0,0.00712806]
[1755160631619,1.12906757,121850.0,121840.0,0.05384806]
[1755160632133,1.12906757,121850.0,121840.0,0.09072806]
[1755160632426,1.12906757,121850.0,121840.0,0.00712806]
[1755160632827,1.12906757,121850.0,121840.0,0.05384806]
[1755160633218,1.12906757,121850.0,121840.0,0.00712806]
[1755160633622,0.6523386,121850.0,121840.0,0.19365426]
[1755160633822,0.6523386,121850.0,121840.0,0.27976426]
[1755160635029,0.6523386,121850.0,121840.0,0.19772806]
[1755160635231,0.6523386,121850.0,121840.0,0.27976436]
[1755160635429,1.12906757,121850.0,121840.0,0.19772806]
[1755160637133,1.12906757,121850.0,121840.0,0.27976436]
[1755160637334,1.12906757,121850.0,121840.0,0.19772806]
[1755160638133,1.12906757,121850.0,121840.0,0.19572806]
[1755160638633,1.12906757,121850.0,121840.0,0.19272806]
[1755160638934,1.12906757,121850.0,121840.0,0.16193806]
[1755160639135,1.14977641,121850.0,121840.0,0.16193806]
[1755160640937,1.14978588,121850.0,121840.0,0.27576436]
[1755160641138,0.67305691,121850.0,121840.0,0.27576436]
[1755160641332,0.59330691,121850.0,121840.0,0.27576436]
[1755160641637,0.48057641,121850.0,121840.0,0.75249333]
[1755160641938,0.48057641,121850.0,121840.0,0.67045703]
[1755160641939,0.62311641,121850.0,121840.0,0.67045703]
[1755160642138,0.67305641,121850.0,121840.0,0.67045703]
[1755160642639,0.67305641,121850.0,121840.0,0.27576436]
[1755160642936,0.67305641,121850.0,121840.0,0.288078]
[1755160643139,0.48057641,121850.0,121840.0,0.76480697]
[1755160644638,0.39854681,121850.0,121840.0,0.76480697]
[1755160644835,0.38151831,121850.0,121840.0,1.60567994]
[1755160645035,0.37906968,121870.0,121860.0,0.2695728]
[1755160645231,0.01826968,121870.0,121860.0,0.77546797]
[1755160645539,0.89615594,121890.0,121880.0,0.1584194]
[1755160645736,0.70008654,121890.0,121880.0,0.75860201]
[1755160645944,0.81414654,121890.0,121880.0,0.75860201]
[1755160646139,0.81414654,121890.0,121880.0,0.19986364]
[1755160646328,0.7958777,121890.0,121880.0,0.19986364]
[1755160646643,0.7958777,121890.0,121880.0,0.21637108]
[1755160646939,0.7958777,121890.0,121880.0,0.02882108]
[1755160647141,0.7998777,121890.0,121880.0,0.02882108]
[1755160647837,0.81690284,121890.0,121880.0,0.02882108]
[1755160648030,0.81690284,121890.0,121880.0,0.01650744]
[1755160648230,0.81990284,121890.0,121880.0,0.01650744]
[1755160649731,0.81990284,121890.0,121880.0,0.20405744]
[1755160650042,0.81990284,121890.0,121880.0,0.76279601]
[1755160650239,0.81990284,121890.0,121880.0,0.68078641]
[1755160650439,0.81990284,121890.0,121880.0,0.20405744]
[1755160650843,0.81990284,121890.0,121880.0,0.28606704]
[1755160651038,0.81990284,121890.0,121880.0,0.29889235]
[1755160651244,0.81990284,121890.0,121880.0,0.21688275]
[1755160652642,0.81990284,121890.0,121880.0,0.20405744]
[1755160653045,0.81990284,121890.0,121880.0,0.21688275]
[1755160653435,0.81990284,121890.0,121880.0,0.20405744]
[1755160653646,0.81990284,121890.0,121880.0,0.01650744]
[1755160654150,1.29663181,121890.0,121880.0,0.01650744]
[1755160655048,0.81990284,121890.0,121880.0,0.17469744]
[1755160655248,0.81990284,121890.0,121880.0,0.20405744]
[1755160656443,0.79322647,121890.0,121880.0,0.21688262]
[1755160656749,1.19629416,121890.0,121880.0,0.02933262]
[1755160656951,1.2163043,121890.0,121880.0,0.02933262]
[1755160657654,1.2133043,121890.0,121880.0,0.02933262]
[1755160657950,1.2143043,121890.0,121880.0,0.02933262]
[1755160658151,1.2143043,121890.0,121880.0,0.04215786]
[1755160659046,0.73457533,121890.0,121880.0,0.04215786]
[1755160659451,1.2113043,121890.0,121880.0,0.08830786]
[1755160659847,0.73457533,121890.0,121880.0,0.20594746]
[1755160660048,0.73457533,121890.0,121880.0,0.04215786]
[1755160660454,1.2113043,121890.0,121880.0,0.04215786]
[1755160665255,1.19129416,121890.0,121880.0,0.02933262]
[1755160665646,1.20958115,121890.0,121880.0,0.02933262]
[1755160668250,1.20958115,121890.0,121880.0,0.04215835]
[1755160670158,1.22843841,121890.0,121880.0,0.04215835]
[1755160671563,1.20958115,121890.0,121880.0,0.04215835]
[1755160673361,1.22846083,121890.0,121880.0,0.04215835]
[1755160674256,1.22846083,121890.0,121880.0,0.04215835]
[1755160676150,1.22846083,121890.0,121880.0,0.23243835]
[1755160676754,0.271743,121860.0,121850.0,0.29986397]
[1755160676949,0.74847197,121860.0,121850.0,0.26465034]
[1755160677160,1.10927197,121860.0,121850.0,0.26540064]
[1755160679165,0.632543,121860.0,121850.0,0.26540064]
[1755160679666,0.632543,121860.0,121850.0,0.20770637]
[1755160679968,1.10927197,121860.0,121850.0,0.26840064]
[1755160680359,0.632543,121860.0,121850.0,0.26740064]
[1755160680566,0.632543,121860.0,121850.0,0.26540064]
[1755160682056,0.632543,121860.0,121850.0,0.20670637]
[1755160682562,0.632543,121860.0,121850.0,0.28873587]
[1755160682866,0.271743,121860.0,121850.0,0.28873587]
[1755160683765,0.271743,121860.0,121850.0,0.28873577]
[1755160687959,0.271743,121860.0,121850.0,0.20670637]
[1755160688765,0.271743,121860.0,121850.0,0.23236191]
[1755160690867,0.158183,121860.0,121850.0,0.31438581]
[1755160691067,0.271743,121860.0,121850.0,0.31438581]
[1755160691469,0.77174587,121870.0,121850.0,0.87313868]
[1755160691668,0.74201587,121870.0,121860.0,0.2722972]
[1755160691970,0.74201587,121870.0,121860.0,0.28512497]
[1755160692163,0.79397587,121870.0,121860.0,0.28512497]
[1755160692364,0.89684587,121870.0,121860.0,0.20310777]
[1755160692565,0.89684587,121870.0,121860.0,0.28512507]
[1755160692764,0.89784587,121870.0,121860.0,0.28512507]
[1755160693166,0.89784587,121870.0,121860.0,0.20310777]
[1755160693467,0.89884587,121870.0,121860.0,0.20310777]
[1755160694171,0.89784587,121870.0,121860.0,0.19028]
[1755160694469,0.89884587,121870.0,121860.0,0.20310719]
[1755160695274,0.89884587,121870.0,121860.0,0.17120919]
[1755160695572,0.89884587,121870.0,121860.0,0.28512919]
[1755160696874,0.89884587,121870.0,121860.0,0.20310719]
[1755160697078,0.8806086,121870.0,121860.0,0.20310719]
[1755160697269,1.35733757,121870.0,121860.0,0.01282719]
[1755160697571,1.35733757,121870.0,121860.0,0.02565459]
[1755160698069,1.35733757,121870.0,121860.0,0.02565489]
[1755160700175,1.35733757,121870.0,121860.0,0.02577269]
[1755160700676,1.37659924,121870.0,121860.0,0.02577269]
[1755160701073,1.39518604,121870.0,121860.0,0.02577269]
[1755160701275,0.2717423,121860.0,121850.0,0.01690524]
[1755160701470,0.271749,121850.0,121840.0,0.2950653]
[1755160701670,1.10927797,121850.0,121840.0,0.3759653]
[1755160701866,1.10927797,121850.0,121840.0,0.4383853]
[1755160702174,0.05196,121850.0,121840.0,0.3563498]
[1755160702775,0.03116,121850.0,121840.0,0.83307877]
[1755160702972,0.7965972,121860.0,121850.0,0.158389]
[1755160703271,0.7145691,121860.0,121850.0,0.272309]
[1755160703474,0.4947825,121860.0,121850.0,0.272309]
[1755160703679,0.5594025,121860.0,121850.0,0.272309]
[1755160703975,0.6295325,121860.0,121850.0,0.272309]
[1755160704176,0.38006455,121860.0,121850.0,0.74903797]
[1755160704376,0.46208705,121860.0,121850.0,0.272309]
[1755160704578,0.53089705,121860.0,121850.0,0.272309]
[1755160704773,0.58111705,121860.0,121850.0,0.272309]
[1755160704973,0.62704705,121860.0,121850.0,0.272309]
[1755160705175,0.65219705,121860.0,121850.0,0.272309]
[1755160706180,0.01926455,121860.0,121850.0,0.272309]
[1755160706478,0.1826221,121870.0,121850.0,1.15997177]
[1755160706668,0.35272426,121870.0,121860.0,0.2672725]
[1755160706869,0.47402426,121870.0,121860.0,0.2672725]
[1755160707673,0.47502426,121870.0,121860.0,0.2672725]
[1755160708079,0.4557506,121870.0,121860.0,0.2672725]
[1755160709277,0.4567506,121870.0,121860.0,0.2672725]
[1755160713284,0.4567506,121870.0,121860.0,0.27978931]
[1755160714685,0.4381638,121870.0,121860.0,0.27978931]
[1755160714886,0.4381638,121870.0,121860.0,0.29672555]
[1755160715281,0.4381638,121870.0,121860.0,0.29672491]
[1755160718286,0.4381638,121870.0,121860.0,0.29620387]
[1755160718484,0.3561453,121870.0,121860.0,0.29620387]
[1755160718686,0.3561453,121870.0,121860.0,0.77293284]
[1755160718987,0.3102153,121870.0,121860.0,0.77293284]
[1755160719187,0.3561453,121870.0,121860.0,0.29620387]
[1755160720285,0.2741269,121870.0,121860.0,0.29620387]
[1755160720687,0.2741269,121870.0,121860.0,0.29620478]
[1755160721283,0.002,121870.0,121860.0,0.29620478]
[1755160721588,0.002,121870.0,121860.0,1.13373375]
[1755160721883,0.002,121870.0,121860.0,1.29785375]
[1755160723089,0.001,121870.0,121860.0,1.29785375]
[1755160723586,0.2469696,121880.0,121870.0,0.2672663]
[1755160723783,0.2469696,121880.0,121870.0,0.64057697]
[1755160723989,0.16496,121880.0,121870.0,0.64057697]
[1755160725092,0.2469696,121880.0,121870.0,0.64057697]
[1755160725693,0.2469696,121880.0,121870.0,0.27977697]
[1755160725886,0.2469696,121880.0,121870.0,1.11730594]
[1755160726086,0.16496,121880.0,121870.0,1.11730594]
[1755160726697,0.81395724,121890.0,121880.0,0.2672596]
[1755160726991,0.81395724,121890.0,121880.0,0.29643281]
[1755160728295,0.81495724,121890.0,121880.0,0.29643281]
[1755160728496,0.81595724,121890.0,121880.0,0.29643281]
[1755160732288,0.81595724,121890.0,121880.0,0.28392214]
[1755160732498,0.81595724,121890.0,121880.0,0.29642735]
[1755160732694,0.01902514,121890.0,121880.0,0.29642735]
[1755160732893,0.29113804,121890.0,121880.0,0.77315632]
[1755160733700,0.29113804,121890.0,121880.0,0.29642735]
[1755160734000,0.20913514,121890.0,121880.0,0.29642735]
[1755160734190,0.29113804,121890.0,121880.0,0.29642735]
[1755160735402,0.20913514,121890.0,121880.0,0.29642735]
[1755160736200,0.29113804,121890.0,121880.0,0.29642735]
[1755160736704,0.20236514,121890.0,121880.0,0.29642735]
[1755160736905,0.28436804,121890.0,121880.0,0.29642735]
[1755160737208,0.20236514,121890.0,121880.0,0.29642735]
[1755160738408,0.76109701,121890.0,121880.0,0.26741735]
[1755160738603,0.76109701,121890.0,121880.0,0.17195214]
[1755160738808,0.28436804,121890.0,121880.0,0.17195214]
[1755160739108,0.28436804,121890.0,121880.0,0.27920214]
[1755160740412,0.20236514,121890.0,121880.0,0.27920214]
[1755160740811,0.28436804,121890.0,121880.0,0.27920214]
[1755160741014,0.28436804,121890.0,121880.0,0.09867214]
[1755160741315,0.28436804,121890.0,121880.0,0.01666254]
[1755160741316,1.12189701,121890.0,121880.0,0.01666254]
[1755160741607,1.15953442,121890.0,121880.0,0.09867214]
[1755160742204,1.15953442,121890.0,121880.0,0.01666254]
[1755160742710,1.52362242,121890.0,121880.0,0.01666254]